{"text_format":"3","workbook":"xlsx","n_sheets":2,"sheets":["Sledování průběhu hubnutí","výpočty"],"not_rendered":{"charts":1,"defined_names":7},"read":"whole","date_system":"1900"}

{"sheet":"Sledování průběhu hubnutí","index":0,"n_rows":129,"n_cols":11,"rows_kept":129,"merged":[[0,5,0,9],[1,5,3,9]]}
[null,"CÍLOVÁ HMOTNOST","ZOBRAZENÍ GRAFU",null,null,"MARIE – SLEDOVÁNÍ"]
[{"$nulls":5},"HMOTNOSTI"]
[null,{"v":172,"d":"172.0"},"TÝDENNÍ",{"$nulls":7}," "]
[]
[]
[{"$nulls":10}," "]
{"$rows_empty":18}
[null,"DATUM","HMOTNOST"]
[null,"2012-11-30",{"v":176,"d":"176.0"}]
[null,"2012-12-07",{"v":176,"d":"176.0"}]
[null,"2012-12-14",177.6]
[null,"2012-12-21",176.5]
[null,"2012-12-28",176.1]
[null,"2013-01-04",{"v":174,"d":"174.0"}]
[null,"2013-01-11",{"v":173,"d":"173.0"}]
[null,"2013-01-18",{"v":172,"d":"172.0"}]
[null,"2013-01-25",{"v":172,"d":"172.0"}]
[null,"2013-02-01",{"v":173,"d":"173.0"}]
[null,"2013-02-08",{"v":174,"d":"174.0"}]
[null,"2013-02-15",{"v":175,"d":"175.0"}]
[null,"2013-02-22"]
[null,"2013-03-01"]
[null,"2013-03-08"]
[null,"2013-03-15"]
[null,"2013-03-22"]
[null,"2013-03-29"]
[null,"2013-04-05"]
[null,"2013-04-12"]
[null,"2013-04-19"]
[null,"2013-04-26"]
[null,"2013-05-03"]
[null,"2013-05-10"]
[null,"2013-05-17"]
[null,"2013-05-24"]
[null,"2013-05-31"]
[null,"2013-06-07"]
[null,"2013-06-14"]
[null,"2013-06-21"]
[null,"2013-06-28"]
[null,"2013-07-05"]
[null,"2013-07-12"]
[null,"2013-07-19"]
[null,"2013-07-26"]
[null,"2013-08-02"]
[null,"2013-08-09"]
[null,"2013-08-16"]
[null,"2013-08-23"]
[null,"2013-08-30"]
[null,"2013-09-06"]
[null,"2013-09-13"]
[null,"2013-09-20"]
[null,"2013-09-27"]
[null,"2013-10-04"]
[null,"2013-10-11"]
[null,"2013-10-18"]
[null,"2013-10-25"]
[null,"2013-11-01"]
[null,"2013-11-08"]
[null,"2013-11-15"]
[null,"2013-11-22"]
[null,"2013-11-29"]
[null,"2013-12-06"]
[null,"2013-12-13"]
[null,"2013-12-20"]
[null,"2013-12-27"]
[null,"2014-01-03"]
[null,"2014-01-10"]
[null,"2014-01-17"]
[null,"2014-01-24"]
[null,"2014-01-31"]
[null,"2014-02-07"]
[null,"2014-02-14"]
[null,"2014-02-21"]
[null,"2014-02-28"]
[null,"2014-03-07"]
[null,"2014-03-14"]
[null,"2014-03-21"]
[null,"2014-03-28"]
[null,"2014-04-04"]
[null,"2014-04-11"]
[null,"2014-04-18"]
[null,"2014-04-25"]
[null,"2014-05-02"]
[null,"2014-05-09"]
[null,"2014-05-16"]
[null,"2014-05-23"]
[null,"2014-05-30"]
[null,"2014-06-06"]
[null,"2014-06-13"]
[null,"2014-06-20"]
[null,"2014-06-27"]
[null,"2014-07-04"]
[null,"2014-07-11"]
[null,"2014-07-18"]
[null,"2014-07-25"]
[null,"2014-08-01"]
[null,"2014-08-08"]
[null,"2014-08-15"]
[null,"2014-08-22"]
[null,"2014-08-29"]
[null,"2014-09-05"]
[null,"2014-09-12"]
[null,"2014-09-19"]
[null,"2014-09-26"]
[null,"2014-10-03"]
[null,"2014-10-10"]
[null,"2014-10-17"]
[null,"2014-10-24"]
[null,"2014-10-31"]
[null,"2014-11-07"]
[null,"2014-11-14"]
[null,"2014-11-21"]

{"sheet":"výpočty","index":1,"n_rows":108,"n_cols":17,"rows_kept":108,"hidden":true}
["***  List, který má zůstat skrytý ***"]
[]
[{"$f":"COUNTIF(A5:A108,FALSE)","v":13},"Období","Hodnoty",{"$nulls":3},{"$f":"COUNTIF(H5:H28,\">\"&0)","v":4},"Období",null,"Hodnoty"]
[null,"Týden",null,null,true,null,null,"Měsíc","KONEC MĚSÍCE"]
[{"$f":"IF(('Sledování průběhu hubnutí'!C26=0)*('Sledování průběhu hubnutí'!C25=0),TRUE)","v":false},{"$f":"IF(A5,0,IF('Sledování průběhu hubnutí'!B26=0,'Sledování průběhu hubnutí'!B25+5,'Sledování průběhu hubnutí'!B26))","v":"2012-11-30"},{"$f":"'Sledování průběhu hubnutí'!C26","v":176},{"$f":"MIN(GrafObdobí)","v":"2012-11-30"},{"$f":"IF($E$4,CílováHmotnost,NA())","v":172},null,null,{"$f":"DATE(YEAR(B5),MONTH(B5),1)","v":"2012-11-01"},{"$f":"EOMONTH(H5,0)","v":"2012-11-30"},{"$f":"IFERROR(AVERAGEIFS(TabulkaVáha[HMOTNOST],TabulkaVáha[DATUM],\">=\"&H5,TabulkaVáha[DATUM],\"<=\"&I5),NA())","v":176}]
[{"$f":"IF(('Sledování průběhu hubnutí'!C27=0)*('Sledování průběhu hubnutí'!C26=0),TRUE)","v":false},{"$f":"IF(A6,0,IF('Sledování průběhu hubnutí'!B27=0,'Sledování průběhu hubnutí'!B26+5,'Sledování průběhu hubnutí'!B27))","v":"2012-12-07"},{"$f":"'Sledování průběhu hubnutí'!C27","v":176},{"$f":"MAX(GrafObdobí)","v":"2013-02-22"},172,null,null,{"$f":"IF(I5+1>MAX($B:$B),NA(),I5+1)","v":"2012-12-01"},"2012-12-31",{"$f":"IFERROR(AVERAGEIFS(TabulkaVáha[HMOTNOST],TabulkaVáha[DATUM],\">=\"&H6,TabulkaVáha[DATUM],\"<=\"&I6),NA())","v":176.55}]
[{"$f":"IF(('Sledování průběhu hubnutí'!C28=0)*('Sledování průběhu hubnutí'!C27=0),TRUE)","v":false},{"$f":"IF(A7,0,IF('Sledování průběhu hubnutí'!B28=0,'Sledování průběhu hubnutí'!B27+5,'Sledování průběhu hubnutí'!B28))","v":"2012-12-14"},{"$f":"'Sledování průběhu hubnutí'!C28","v":177.6},{"$nulls":4},{"$f":"IF(I6+1>MAX($B:$B),NA(),I6+1)","v":"2013-01-01"},"2013-01-31",{"$f":"IFERROR(AVERAGEIFS(TabulkaVáha[HMOTNOST],TabulkaVáha[DATUM],\">=\"&H7,TabulkaVáha[DATUM],\"<=\"&I7),NA())","v":172.75}]
[{"$f":"IF(('Sledování průběhu hubnutí'!C29=0)*('Sledování průběhu hubnutí'!C28=0),TRUE)","v":false},{"$f":"IF(A8,0,IF('Sledování průběhu hubnutí'!B29=0,'Sledování průběhu hubnutí'!B28+5,'Sledování průběhu hubnutí'!B29))","v":"2012-12-21"},{"$f":"'Sledování průběhu hubnutí'!C29","v":176.5},{"$nulls":4},"2013-02-01","2013-02-28",{"$f":"IFERROR(AVERAGEIFS(TabulkaVáha[HMOTNOST],TabulkaVáha[DATUM],\">=\"&H8,TabulkaVáha[DATUM],\"<=\"&I8),NA())","v":174}]
[{"$f":"IF(('Sledování průběhu hubnutí'!C30=0)*('Sledování průběhu hubnutí'!C29=0),TRUE)","v":false},{"$f":"IF(A9,0,IF('Sledování průběhu hubnutí'!B30=0,'Sledování průběhu hubnutí'!B29+5,'Sledování průběhu hubnutí'!B30))","v":"2012-12-28"},{"$f":"'Sledování průběhu hubnutí'!C30","v":176.1},{"$nulls":4},{"$error":"#N/A"},{"$error":"#N/A"},{"$f":"IFERROR(AVERAGEIFS(TabulkaVáha[HMOTNOST],TabulkaVáha[DATUM],\">=\"&H9,TabulkaVáha[DATUM],\"<=\"&I9),NA())","v":{"$error":"#N/A"}}]
[{"$f":"IF(('Sledování průběhu hubnutí'!C31=0)*('Sledování průběhu hubnutí'!C30=0),TRUE)","v":false},{"$f":"IF(A10,0,IF('Sledování průběhu hubnutí'!B31=0,'Sledování průběhu hubnutí'!B30+5,'Sledování průběhu hubnutí'!B31))","v":"2013-01-04"},{"$f":"'Sledování průběhu hubnutí'!C31","v":174},{"$nulls":4},{"$error":"#N/A"},{"$error":"#N/A"},{"$f":"IFERROR(AVERAGEIFS(TabulkaVáha[HMOTNOST],TabulkaVáha[DATUM],\">=\"&H10,TabulkaVáha[DATUM],\"<=\"&I10),NA())","v":{"$error":"#N/A"}}]
[{"$f":"IF(('Sledování průběhu hubnutí'!C32=0)*('Sledování průběhu hubnutí'!C31=0),TRUE)","v":false},{"$f":"IF(A11,0,IF('Sledování průběhu hubnutí'!B32=0,'Sledování průběhu hubnutí'!B31+5,'Sledování průběhu hubnutí'!B32))","v":"2013-01-11"},{"$f":"'Sledování průběhu hubnutí'!C32","v":173},{"$nulls":4},{"$error":"#N/A"},{"$error":"#N/A"},{"$f":"IFERROR(AVERAGEIFS(TabulkaVáha[HMOTNOST],TabulkaVáha[DATUM],\">=\"&H11,TabulkaVáha[DATUM],\"<=\"&I11),NA())","v":{"$error":"#N/A"}},{"$nulls":6},{"$f":"MAX($B:$B)","v":"2013-02-22"}]
[{"$f":"IF(('Sledování průběhu hubnutí'!C33=0)*('Sledování průběhu hubnutí'!C32=0),TRUE)","v":false},{"$f":"IF(A12,0,IF('Sledování průběhu hubnutí'!B33=0,'Sledování průběhu hubnutí'!B32+5,'Sledování průběhu hubnutí'!B33))","v":"2013-01-18"},{"$f":"'Sledování průběhu hubnutí'!C33","v":172},{"$nulls":4},{"$error":"#N/A"},{"$error":"#N/A"},{"$f":"IFERROR(AVERAGEIFS(TabulkaVáha[HMOTNOST],TabulkaVáha[DATUM],\">=\"&H12,TabulkaVáha[DATUM],\"<=\"&I12),NA())","v":{"$error":"#N/A"}}]
[{"$f":"IF(('Sledování průběhu hubnutí'!C34=0)*('Sledování průběhu hubnutí'!C33=0),TRUE)","v":false},{"$f":"IF(A13,0,IF('Sledování průběhu hubnutí'!B34=0,'Sledování průběhu hubnutí'!B33+5,'Sledování průběhu hubnutí'!B34))","v":"2013-01-25"},{"$f":"'Sledování průběhu hubnutí'!C34","v":172},{"$nulls":4},{"$error":"#N/A"},{"$error":"#N/A"},{"$f":"IFERROR(AVERAGEIFS(TabulkaVáha[HMOTNOST],TabulkaVáha[DATUM],\">=\"&H13,TabulkaVáha[DATUM],\"<=\"&I13),NA())","v":{"$error":"#N/A"}}]
[{"$f":"IF(('Sledování průběhu hubnutí'!C35=0)*('Sledování průběhu hubnutí'!C34=0),TRUE)","v":false},{"$f":"IF(A14,0,IF('Sledování průběhu hubnutí'!B35=0,'Sledování průběhu hubnutí'!B34+5,'Sledování průběhu hubnutí'!B35))","v":"2013-02-01"},{"$f":"'Sledování průběhu hubnutí'!C35","v":173},{"$nulls":4},{"$error":"#N/A"},{"$error":"#N/A"},{"$f":"IFERROR(AVERAGEIFS(TabulkaVáha[HMOTNOST],TabulkaVáha[DATUM],\">=\"&H14,TabulkaVáha[DATUM],\"<=\"&I14),NA())","v":{"$error":"#N/A"}}]
[{"$f":"IF(('Sledování průběhu hubnutí'!C36=0)*('Sledování průběhu hubnutí'!C35=0),TRUE)","v":false},{"$f":"IF(A15,0,IF('Sledování průběhu hubnutí'!B36=0,'Sledování průběhu hubnutí'!B35+5,'Sledování průběhu hubnutí'!B36))","v":"2013-02-08"},{"$f":"'Sledování průběhu hubnutí'!C36","v":174},{"$nulls":4},{"$error":"#N/A"},{"$error":"#N/A"},{"$f":"IFERROR(AVERAGEIFS(TabulkaVáha[HMOTNOST],TabulkaVáha[DATUM],\">=\"&H15,TabulkaVáha[DATUM],\"<=\"&I15),NA())","v":{"$error":"#N/A"}}]
[{"$f":"IF(('Sledování průběhu hubnutí'!C37=0)*('Sledování průběhu hubnutí'!C36=0),TRUE)","v":false},{"$f":"IF(A16,0,IF('Sledování průběhu hubnutí'!B37=0,'Sledování průběhu hubnutí'!B36+5,'Sledování průběhu hubnutí'!B37))","v":"2013-02-15"},{"$f":"'Sledování průběhu hubnutí'!C37","v":175},{"$nulls":4},{"$error":"#N/A"},{"$error":"#N/A"},{"$f":"IFERROR(AVERAGEIFS(TabulkaVáha[HMOTNOST],TabulkaVáha[DATUM],\">=\"&H16,TabulkaVáha[DATUM],\"<=\"&I16),NA())","v":{"$error":"#N/A"}}]
[{"$f":"IF(('Sledování průběhu hubnutí'!C38=0)*('Sledování průběhu hubnutí'!C37=0),TRUE)","v":false},{"$f":"IF(A17,0,IF('Sledování průběhu hubnutí'!B38=0,'Sledování průběhu hubnutí'!B37+5,'Sledování průběhu hubnutí'!B38))","v":"2013-02-22"},{"$f":"'Sledování průběhu hubnutí'!C38","v":0},{"$nulls":4},{"$error":"#N/A"},{"$error":"#N/A"},{"$f":"IFERROR(AVERAGEIFS(TabulkaVáha[HMOTNOST],TabulkaVáha[DATUM],\">=\"&H17,TabulkaVáha[DATUM],\"<=\"&I17),NA())","v":{"$error":"#N/A"}}]
[{"$f":"IF(('Sledování průběhu hubnutí'!C39=0)*('Sledování průběhu hubnutí'!C38=0),TRUE)","v":true},{"$f":"IF(A18,0,IF('Sledování průběhu hubnutí'!B39=0,'Sledování průběhu hubnutí'!B38+5,'Sledování průběhu hubnutí'!B39))","v":"00:00:00"},{"$f":"'Sledování průběhu hubnutí'!C39","v":0},{"$nulls":4},{"$error":"#N/A"},{"$error":"#N/A"},{"$f":"IFERROR(AVERAGEIFS(TabulkaVáha[HMOTNOST],TabulkaVáha[DATUM],\">=\"&H18,TabulkaVáha[DATUM],\"<=\"&I18),NA())","v":{"$error":"#N/A"}}]
[{"$f":"IF(('Sledování průběhu hubnutí'!C40=0)*('Sledování průběhu hubnutí'!C39=0),TRUE)","v":true},{"$f":"IF(A19,0,IF('Sledování průběhu hubnutí'!B40=0,'Sledování průběhu hubnutí'!B39+5,'Sledování průběhu hubnutí'!B40))","v":"00:00:00"},{"$f":"'Sledování průběhu hubnutí'!C40","v":0},{"$nulls":4},{"$error":"#N/A"},{"$error":"#N/A"},{"$f":"IFERROR(AVERAGEIFS(TabulkaVáha[HMOTNOST],TabulkaVáha[DATUM],\">=\"&H19,TabulkaVáha[DATUM],\"<=\"&I19),NA())","v":{"$error":"#N/A"}}]
[{"$f":"IF(('Sledování průběhu hubnutí'!C41=0)*('Sledování průběhu hubnutí'!C40=0),TRUE)","v":true},{"$f":"IF(A20,0,IF('Sledování průběhu hubnutí'!B41=0,'Sledování průběhu hubnutí'!B40+5,'Sledování průběhu hubnutí'!B41))","v":"00:00:00"},{"$f":"'Sledování průběhu hubnutí'!C41","v":0},{"$nulls":4},{"$error":"#N/A"},{"$error":"#N/A"},{"$f":"IFERROR(AVERAGEIFS(TabulkaVáha[HMOTNOST],TabulkaVáha[DATUM],\">=\"&H20,TabulkaVáha[DATUM],\"<=\"&I20),NA())","v":{"$error":"#N/A"}}]
[{"$f":"IF(('Sledování průběhu hubnutí'!C42=0)*('Sledování průběhu hubnutí'!C41=0),TRUE)","v":true},{"$f":"IF(A21,0,IF('Sledování průběhu hubnutí'!B42=0,'Sledování průběhu hubnutí'!B41+5,'Sledování průběhu hubnutí'!B42))","v":"00:00:00"},{"$f":"'Sledování průběhu hubnutí'!C42","v":0},{"$nulls":4},{"$error":"#N/A"},{"$error":"#N/A"},{"$f":"IFERROR(AVERAGEIFS(TabulkaVáha[HMOTNOST],TabulkaVáha[DATUM],\">=\"&H21,TabulkaVáha[DATUM],\"<=\"&I21),NA())","v":{"$error":"#N/A"}}]
[{"$f":"IF(('Sledování průběhu hubnutí'!C43=0)*('Sledování průběhu hubnutí'!C42=0),TRUE)","v":true},{"$f":"IF(A22,0,IF('Sledování průběhu hubnutí'!B43=0,'Sledování průběhu hubnutí'!B42+5,'Sledování průběhu hubnutí'!B43))","v":"00:00:00"},{"$f":"'Sledování průběhu hubnutí'!C43","v":0},{"$nulls":4},{"$error":"#N/A"},{"$error":"#N/A"},{"$f":"IFERROR(AVERAGEIFS(TabulkaVáha[HMOTNOST],TabulkaVáha[DATUM],\">=\"&H22,TabulkaVáha[DATUM],\"<=\"&I22),NA())","v":{"$error":"#N/A"}}]
[{"$f":"IF(('Sledování průběhu hubnutí'!C44=0)*('Sledování průběhu hubnutí'!C43=0),TRUE)","v":true},{"$f":"IF(A23,0,IF('Sledování průběhu hubnutí'!B44=0,'Sledování průběhu hubnutí'!B43+5,'Sledování průběhu hubnutí'!B44))","v":"00:00:00"},{"$f":"'Sledování průběhu hubnutí'!C44","v":0},{"$nulls":4},{"$error":"#N/A"},{"$error":"#N/A"},{"$f":"IFERROR(AVERAGEIFS(TabulkaVáha[HMOTNOST],TabulkaVáha[DATUM],\">=\"&H23,TabulkaVáha[DATUM],\"<=\"&I23),NA())","v":{"$error":"#N/A"}}]
[{"$f":"IF(('Sledování průběhu hubnutí'!C45=0)*('Sledování průběhu hubnutí'!C44=0),TRUE)","v":true},{"$f":"IF(A24,0,IF('Sledování průběhu hubnutí'!B45=0,'Sledování průběhu hubnutí'!B44+5,'Sledování průběhu hubnutí'!B45))","v":"00:00:00"},{"$f":"'Sledování průběhu hubnutí'!C45","v":0},{"$nulls":4},{"$error":"#N/A"},{"$error":"#N/A"},{"$f":"IFERROR(AVERAGEIFS(TabulkaVáha[HMOTNOST],TabulkaVáha[DATUM],\">=\"&H24,TabulkaVáha[DATUM],\"<=\"&I24),NA())","v":{"$error":"#N/A"}}]
[{"$f":"IF(('Sledování průběhu hubnutí'!C46=0)*('Sledování průběhu hubnutí'!C45=0),TRUE)","v":true},{"$f":"IF(A25,0,IF('Sledování průběhu hubnutí'!B46=0,'Sledování průběhu hubnutí'!B45+5,'Sledování průběhu hubnutí'!B46))","v":"00:00:00"},{"$f":"'Sledování průběhu hubnutí'!C46","v":0},{"$nulls":4},{"$error":"#N/A"},{"$error":"#N/A"},{"$f":"IFERROR(AVERAGEIFS(TabulkaVáha[HMOTNOST],TabulkaVáha[DATUM],\">=\"&H25,TabulkaVáha[DATUM],\"<=\"&I25),NA())","v":{"$error":"#N/A"}}]
[{"$f":"IF(('Sledování průběhu hubnutí'!C47=0)*('Sledování průběhu hubnutí'!C46=0),TRUE)","v":true},{"$f":"IF(A26,0,IF('Sledování průběhu hubnutí'!B47=0,'Sledování průběhu hubnutí'!B46+5,'Sledování průběhu hubnutí'!B47))","v":"00:00:00"},{"$f":"'Sledování průběhu hubnutí'!C47","v":0},{"$nulls":4},{"$error":"#N/A"},{"$error":"#N/A"},{"$f":"IFERROR(AVERAGEIFS(TabulkaVáha[HMOTNOST],TabulkaVáha[DATUM],\">=\"&H26,TabulkaVáha[DATUM],\"<=\"&I26),NA())","v":{"$error":"#N/A"}}]
[{"$f":"IF(('Sledování průběhu hubnutí'!C48=0)*('Sledování průběhu hubnutí'!C47=0),TRUE)","v":true},{"$f":"IF(A27,0,IF('Sledování průběhu hubnutí'!B48=0,'Sledování průběhu hubnutí'!B47+5,'Sledování průběhu hubnutí'!B48))","v":"00:00:00"},{"$f":"'Sledování průběhu hubnutí'!C48","v":0},{"$nulls":4},{"$error":"#N/A"},{"$error":"#N/A"},{"$f":"IFERROR(AVERAGEIFS(TabulkaVáha[HMOTNOST],TabulkaVáha[DATUM],\">=\"&H27,TabulkaVáha[DATUM],\"<=\"&I27),NA())","v":{"$error":"#N/A"}}]
[{"$f":"IF(('Sledování průběhu hubnutí'!C49=0)*('Sledování průběhu hubnutí'!C48=0),TRUE)","v":true},{"$f":"IF(A28,0,IF('Sledování průběhu hubnutí'!B49=0,'Sledování průběhu hubnutí'!B48+5,'Sledování průběhu hubnutí'!B49))","v":"00:00:00"},{"$f":"'Sledování průběhu hubnutí'!C49","v":0},{"$nulls":4},{"$error":"#N/A"},{"$error":"#N/A"},{"$f":"IFERROR(AVERAGEIFS(TabulkaVáha[HMOTNOST],TabulkaVáha[DATUM],\">=\"&H28,TabulkaVáha[DATUM],\"<=\"&I28),NA())","v":{"$error":"#N/A"}}]
[{"$f":"IF(('Sledování průběhu hubnutí'!C50=0)*('Sledování průběhu hubnutí'!C49=0),TRUE)","v":true},{"$f":"IF(A29,0,IF('Sledování průběhu hubnutí'!B50=0,'Sledování průběhu hubnutí'!B49+5,'Sledování průběhu hubnutí'!B50))","v":"00:00:00"},{"$f":"'Sledování průběhu hubnutí'!C50","v":0}]
[{"$f":"IF(('Sledování průběhu hubnutí'!C51=0)*('Sledování průběhu hubnutí'!C50=0),TRUE)","v":true},{"$f":"IF(A30,0,IF('Sledování průběhu hubnutí'!B51=0,'Sledování průběhu hubnutí'!B50+5,'Sledování průběhu hubnutí'!B51))","v":"00:00:00"},{"$f":"'Sledování průběhu hubnutí'!C51","v":0}]
[{"$f":"IF(('Sledování průběhu hubnutí'!C52=0)*('Sledování průběhu hubnutí'!C51=0),TRUE)","v":true},{"$f":"IF(A31,0,IF('Sledování průběhu hubnutí'!B52=0,'Sledování průběhu hubnutí'!B51+5,'Sledování průběhu hubnutí'!B52))","v":"00:00:00"},{"$f":"'Sledování průběhu hubnutí'!C52","v":0}]
[{"$f":"IF(('Sledování průběhu hubnutí'!C53=0)*('Sledování průběhu hubnutí'!C52=0),TRUE)","v":true},{"$f":"IF(A32,0,IF('Sledování průběhu hubnutí'!B53=0,'Sledování průběhu hubnutí'!B52+5,'Sledování průběhu hubnutí'!B53))","v":"00:00:00"},{"$f":"'Sledování průběhu hubnutí'!C53","v":0}]
[{"$f":"IF(('Sledování průběhu hubnutí'!C54=0)*('Sledování průběhu hubnutí'!C53=0),TRUE)","v":true},{"$f":"IF(A33,0,IF('Sledování průběhu hubnutí'!B54=0,'Sledování průběhu hubnutí'!B53+5,'Sledování průběhu hubnutí'!B54))","v":"00:00:00"},{"$f":"'Sledování průběhu hubnutí'!C54","v":0}]
[{"$f":"IF(('Sledování průběhu hubnutí'!C55=0)*('Sledování průběhu hubnutí'!C54=0),TRUE)","v":true},{"$f":"IF(A34,0,IF('Sledování průběhu hubnutí'!B55=0,'Sledování průběhu hubnutí'!B54+5,'Sledování průběhu hubnutí'!B55))","v":"00:00:00"},{"$f":"'Sledování průběhu hubnutí'!C55","v":0}]
[{"$f":"IF(('Sledování průběhu hubnutí'!C56=0)*('Sledování průběhu hubnutí'!C55=0),TRUE)","v":true},{"$f":"IF(A35,0,IF('Sledování průběhu hubnutí'!B56=0,'Sledování průběhu hubnutí'!B55+5,'Sledování průběhu hubnutí'!B56))","v":"00:00:00"},{"$f":"'Sledování průběhu hubnutí'!C56","v":0}]
[{"$f":"IF(('Sledování průběhu hubnutí'!C57=0)*('Sledování průběhu hubnutí'!C56=0),TRUE)","v":true},{"$f":"IF(A36,0,IF('Sledování průběhu hubnutí'!B57=0,'Sledování průběhu hubnutí'!B56+5,'Sledování průběhu hubnutí'!B57))","v":"00:00:00"},{"$f":"'Sledování průběhu hubnutí'!C57","v":0}]
[{"$f":"IF(('Sledování průběhu hubnutí'!C58=0)*('Sledování průběhu hubnutí'!C57=0),TRUE)","v":true},{"$f":"IF(A37,0,IF('Sledování průběhu hubnutí'!B58=0,'Sledování průběhu hubnutí'!B57+5,'Sledování průběhu hubnutí'!B58))","v":"00:00:00"},{"$f":"'Sledování průběhu hubnutí'!C58","v":0}]
[{"$f":"IF(('Sledování průběhu hubnutí'!C59=0)*('Sledování průběhu hubnutí'!C58=0),TRUE)","v":true},{"$f":"IF(A38,0,IF('Sledování průběhu hubnutí'!B59=0,'Sledování průběhu hubnutí'!B58+5,'Sledování průběhu hubnutí'!B59))","v":"00:00:00"},{"$f":"'Sledování průběhu hubnutí'!C59","v":0}]
[{"$f":"IF(('Sledování průběhu hubnutí'!C60=0)*('Sledování průběhu hubnutí'!C59=0),TRUE)","v":true},{"$f":"IF(A39,0,IF('Sledování průběhu hubnutí'!B60=0,'Sledování průběhu hubnutí'!B59+5,'Sledování průběhu hubnutí'!B60))","v":"00:00:00"},{"$f":"'Sledování průběhu hubnutí'!C60","v":0}]
[{"$f":"IF(('Sledování průběhu hubnutí'!C61=0)*('Sledování průběhu hubnutí'!C60=0),TRUE)","v":true},{"$f":"IF(A40,0,IF('Sledování průběhu hubnutí'!B61=0,'Sledování průběhu hubnutí'!B60+5,'Sledování průběhu hubnutí'!B61))","v":"00:00:00"},{"$f":"'Sledování průběhu hubnutí'!C61","v":0}]
[{"$f":"IF(('Sledování průběhu hubnutí'!C62=0)*('Sledování průběhu hubnutí'!C61=0),TRUE)","v":true},{"$f":"IF(A41,0,IF('Sledování průběhu hubnutí'!B62=0,'Sledování průběhu hubnutí'!B61+5,'Sledování průběhu hubnutí'!B62))","v":"00:00:00"},{"$f":"'Sledování průběhu hubnutí'!C62","v":0}]
[{"$f":"IF(('Sledování průběhu hubnutí'!C63=0)*('Sledování průběhu hubnutí'!C62=0),TRUE)","v":true},{"$f":"IF(A42,0,IF('Sledování průběhu hubnutí'!B63=0,'Sledování průběhu hubnutí'!B62+5,'Sledování průběhu hubnutí'!B63))","v":"00:00:00"},{"$f":"'Sledování průběhu hubnutí'!C63","v":0}]
[{"$f":"IF(('Sledování průběhu hubnutí'!C64=0)*('Sledování průběhu hubnutí'!C63=0),TRUE)","v":true},{"$f":"IF(A43,0,IF('Sledování průběhu hubnutí'!B64=0,'Sledování průběhu hubnutí'!B63+5,'Sledování průběhu hubnutí'!B64))","v":"00:00:00"},{"$f":"'Sledování průběhu hubnutí'!C64","v":0}]
[{"$f":"IF(('Sledování průběhu hubnutí'!C65=0)*('Sledování průběhu hubnutí'!C64=0),TRUE)","v":true},{"$f":"IF(A44,0,IF('Sledování průběhu hubnutí'!B65=0,'Sledování průběhu hubnutí'!B64+5,'Sledování průběhu hubnutí'!B65))","v":"00:00:00"},{"$f":"'Sledování průběhu hubnutí'!C65","v":0}]
[{"$f":"IF(('Sledování průběhu hubnutí'!C66=0)*('Sledování průběhu hubnutí'!C65=0),TRUE)","v":true},{"$f":"IF(A45,0,IF('Sledování průběhu hubnutí'!B66=0,'Sledování průběhu hubnutí'!B65+5,'Sledování průběhu hubnutí'!B66))","v":"00:00:00"},{"$f":"'Sledování průběhu hubnutí'!C66","v":0}]
[{"$f":"IF(('Sledování průběhu hubnutí'!C67=0)*('Sledování průběhu hubnutí'!C66=0),TRUE)","v":true},{"$f":"IF(A46,0,IF('Sledování průběhu hubnutí'!B67=0,'Sledování průběhu hubnutí'!B66+5,'Sledování průběhu hubnutí'!B67))","v":"00:00:00"},{"$f":"'Sledování průběhu hubnutí'!C67","v":0}]
[{"$f":"IF(('Sledování průběhu hubnutí'!C68=0)*('Sledování průběhu hubnutí'!C67=0),TRUE)","v":true},{"$f":"IF(A47,0,IF('Sledování průběhu hubnutí'!B68=0,'Sledování průběhu hubnutí'!B67+5,'Sledování průběhu hubnutí'!B68))","v":"00:00:00"},{"$f":"'Sledování průběhu hubnutí'!C68","v":0}]
[{"$f":"IF(('Sledování průběhu hubnutí'!C69=0)*('Sledování průběhu hubnutí'!C68=0),TRUE)","v":true},{"$f":"IF(A48,0,IF('Sledování průběhu hubnutí'!B69=0,'Sledování průběhu hubnutí'!B68+5,'Sledování průběhu hubnutí'!B69))","v":"00:00:00"},{"$f":"'Sledování průběhu hubnutí'!C69","v":0}]
[{"$f":"IF(('Sledování průběhu hubnutí'!C70=0)*('Sledování průběhu hubnutí'!C69=0),TRUE)","v":true},{"$f":"IF(A49,0,IF('Sledování průběhu hubnutí'!B70=0,'Sledování průběhu hubnutí'!B69+5,'Sledování průběhu hubnutí'!B70))","v":"00:00:00"},{"$f":"'Sledování průběhu hubnutí'!C70","v":0}]
[{"$f":"IF(('Sledování průběhu hubnutí'!C71=0)*('Sledování průběhu hubnutí'!C70=0),TRUE)","v":true},{"$f":"IF(A50,0,IF('Sledování průběhu hubnutí'!B71=0,'Sledování průběhu hubnutí'!B70+5,'Sledování průběhu hubnutí'!B71))","v":"00:00:00"},{"$f":"'Sledování průběhu hubnutí'!C71","v":0}]
[{"$f":"IF(('Sledování průběhu hubnutí'!C72=0)*('Sledování průběhu hubnutí'!C71=0),TRUE)","v":true},{"$f":"IF(A51,0,IF('Sledování průběhu hubnutí'!B72=0,'Sledování průběhu hubnutí'!B71+5,'Sledování průběhu hubnutí'!B72))","v":"00:00:00"},{"$f":"'Sledování průběhu hubnutí'!C72","v":0}]
[{"$f":"IF(('Sledování průběhu hubnutí'!C73=0)*('Sledování průběhu hubnutí'!C72=0),TRUE)","v":true},{"$f":"IF(A52,0,IF('Sledování průběhu hubnutí'!B73=0,'Sledování průběhu hubnutí'!B72+5,'Sledování průběhu hubnutí'!B73))","v":"00:00:00"},{"$f":"'Sledování průběhu hubnutí'!C73","v":0}]
[{"$f":"IF(('Sledování průběhu hubnutí'!C74=0)*('Sledování průběhu hubnutí'!C73=0),TRUE)","v":true},{"$f":"IF(A53,0,IF('Sledování průběhu hubnutí'!B74=0,'Sledování průběhu hubnutí'!B73+5,'Sledování průběhu hubnutí'!B74))","v":"00:00:00"},{"$f":"'Sledování průběhu hubnutí'!C74","v":0}]
[{"$f":"IF(('Sledování průběhu hubnutí'!C75=0)*('Sledování průběhu hubnutí'!C74=0),TRUE)","v":true},{"$f":"IF(A54,0,IF('Sledování průběhu hubnutí'!B75=0,'Sledování průběhu hubnutí'!B74+5,'Sledování průběhu hubnutí'!B75))","v":"00:00:00"},{"$f":"'Sledování průběhu hubnutí'!C75","v":0}]
[{"$f":"IF(('Sledování průběhu hubnutí'!C76=0)*('Sledování průběhu hubnutí'!C75=0),TRUE)","v":true},{"$f":"IF(A55,0,IF('Sledování průběhu hubnutí'!B76=0,'Sledování průběhu hubnutí'!B75+5,'Sledování průběhu hubnutí'!B76))","v":"00:00:00"},{"$f":"'Sledování průběhu hubnutí'!C76","v":0}]
[{"$f":"IF(('Sledování průběhu hubnutí'!C77=0)*('Sledování průběhu hubnutí'!C76=0),TRUE)","v":true},{"$f":"IF(A56,0,IF('Sledování průběhu hubnutí'!B77=0,'Sledování průběhu hubnutí'!B76+5,'Sledování průběhu hubnutí'!B77))","v":"00:00:00"},{"$f":"'Sledování průběhu hubnutí'!C77","v":0}]
[{"$f":"IF(('Sledování průběhu hubnutí'!C78=0)*('Sledování průběhu hubnutí'!C77=0),TRUE)","v":true},{"$f":"IF(A57,0,IF('Sledování průběhu hubnutí'!B78=0,'Sledování průběhu hubnutí'!B77+5,'Sledování průběhu hubnutí'!B78))","v":"00:00:00"},{"$f":"'Sledování průběhu hubnutí'!C78","v":0}]
[{"$f":"IF(('Sledování průběhu hubnutí'!C79=0)*('Sledování průběhu hubnutí'!C78=0),TRUE)","v":true},{"$f":"IF(A58,0,IF('Sledování průběhu hubnutí'!B79=0,'Sledování průběhu hubnutí'!B78+5,'Sledování průběhu hubnutí'!B79))","v":"00:00:00"},{"$f":"'Sledování průběhu hubnutí'!C79","v":0}]
[{"$f":"IF(('Sledování průběhu hubnutí'!C80=0)*('Sledování průběhu hubnutí'!C79=0),TRUE)","v":true},{"$f":"IF(A59,0,IF('Sledování průběhu hubnutí'!B80=0,'Sledování průběhu hubnutí'!B79+5,'Sledování průběhu hubnutí'!B80))","v":"00:00:00"},{"$f":"'Sledování průběhu hubnutí'!C80","v":0}]
[{"$f":"IF(('Sledování průběhu hubnutí'!C81=0)*('Sledování průběhu hubnutí'!C80=0),TRUE)","v":true},{"$f":"IF(A60,0,IF('Sledování průběhu hubnutí'!B81=0,'Sledování průběhu hubnutí'!B80+5,'Sledování průběhu hubnutí'!B81))","v":"00:00:00"},{"$f":"'Sledování průběhu hubnutí'!C81","v":0}]
[{"$f":"IF(('Sledování průběhu hubnutí'!C82=0)*('Sledování průběhu hubnutí'!C81=0),TRUE)","v":true},{"$f":"IF(A61,0,IF('Sledování průběhu hubnutí'!B82=0,'Sledování průběhu hubnutí'!B81+5,'Sledování průběhu hubnutí'!B82))","v":"00:00:00"},{"$f":"'Sledování průběhu hubnutí'!C82","v":0}]
[{"$f":"IF(('Sledování průběhu hubnutí'!C83=0)*('Sledování průběhu hubnutí'!C82=0),TRUE)","v":true},{"$f":"IF(A62,0,IF('Sledování průběhu hubnutí'!B83=0,'Sledování průběhu hubnutí'!B82+5,'Sledování průběhu hubnutí'!B83))","v":"00:00:00"},{"$f":"'Sledování průběhu hubnutí'!C83","v":0}]
[{"$f":"IF(('Sledování průběhu hubnutí'!C84=0)*('Sledování průběhu hubnutí'!C83=0),TRUE)","v":true},{"$f":"IF(A63,0,IF('Sledování průběhu hubnutí'!B84=0,'Sledování průběhu hubnutí'!B83+5,'Sledování průběhu hubnutí'!B84))","v":"00:00:00"},{"$f":"'Sledování průběhu hubnutí'!C84","v":0}]
[{"$f":"IF(('Sledování průběhu hubnutí'!C85=0)*('Sledování průběhu hubnutí'!C84=0),TRUE)","v":true},{"$f":"IF(A64,0,IF('Sledování průběhu hubnutí'!B85=0,'Sledování průběhu hubnutí'!B84+5,'Sledování průběhu hubnutí'!B85))","v":"00:00:00"},{"$f":"'Sledování průběhu hubnutí'!C85","v":0}]
[{"$f":"IF(('Sledování průběhu hubnutí'!C86=0)*('Sledování průběhu hubnutí'!C85=0),TRUE)","v":true},{"$f":"IF(A65,0,IF('Sledování průběhu hubnutí'!B86=0,'Sledování průběhu hubnutí'!B85+5,'Sledování průběhu hubnutí'!B86))","v":"00:00:00"},{"$f":"'Sledování průběhu hubnutí'!C86","v":0}]
[{"$f":"IF(('Sledování průběhu hubnutí'!C87=0)*('Sledování průběhu hubnutí'!C86=0),TRUE)","v":true},{"$f":"IF(A66,0,IF('Sledování průběhu hubnutí'!B87=0,'Sledování průběhu hubnutí'!B86+5,'Sledování průběhu hubnutí'!B87))","v":"00:00:00"},{"$f":"'Sledování průběhu hubnutí'!C87","v":0}]
[{"$f":"IF(('Sledování průběhu hubnutí'!C88=0)*('Sledování průběhu hubnutí'!C87=0),TRUE)","v":true},{"$f":"IF(A67,0,IF('Sledování průběhu hubnutí'!B88=0,'Sledování průběhu hubnutí'!B87+5,'Sledování průběhu hubnutí'!B88))","v":"00:00:00"},{"$f":"'Sledování průběhu hubnutí'!C88","v":0}]
[{"$f":"IF(('Sledování průběhu hubnutí'!C89=0)*('Sledování průběhu hubnutí'!C88=0),TRUE)","v":true},{"$f":"IF(A68,0,IF('Sledování průběhu hubnutí'!B89=0,'Sledování průběhu hubnutí'!B88+5,'Sledování průběhu hubnutí'!B89))","v":"00:00:00"},{"$f":"'Sledování průběhu hubnutí'!C89","v":0}]
[{"$f":"IF(('Sledování průběhu hubnutí'!C90=0)*('Sledování průběhu hubnutí'!C89=0),TRUE)","v":true},{"$f":"IF(A69,0,IF('Sledování průběhu hubnutí'!B90=0,'Sledování průběhu hubnutí'!B89+5,'Sledování průběhu hubnutí'!B90))","v":"00:00:00"},{"$f":"'Sledování průběhu hubnutí'!C90","v":0}]
[{"$f":"IF(('Sledování průběhu hubnutí'!C91=0)*('Sledování průběhu hubnutí'!C90=0),TRUE)","v":true},{"$f":"IF(A70,0,IF('Sledování průběhu hubnutí'!B91=0,'Sledování průběhu hubnutí'!B90+5,'Sledování průběhu hubnutí'!B91))","v":"00:00:00"},{"$f":"'Sledování průběhu hubnutí'!C91","v":0}]
[{"$f":"IF(('Sledování průběhu hubnutí'!C92=0)*('Sledování průběhu hubnutí'!C91=0),TRUE)","v":true},{"$f":"IF(A71,0,IF('Sledování průběhu hubnutí'!B92=0,'Sledování průběhu hubnutí'!B91+5,'Sledování průběhu hubnutí'!B92))","v":"00:00:00"},{"$f":"'Sledování průběhu hubnutí'!C92","v":0}]
[{"$f":"IF(('Sledování průběhu hubnutí'!C93=0)*('Sledování průběhu hubnutí'!C92=0),TRUE)","v":true},{"$f":"IF(A72,0,IF('Sledování průběhu hubnutí'!B93=0,'Sledování průběhu hubnutí'!B92+5,'Sledování průběhu hubnutí'!B93))","v":"00:00:00"},{"$f":"'Sledování průběhu hubnutí'!C93","v":0}]
[{"$f":"IF(('Sledování průběhu hubnutí'!C94=0)*('Sledování průběhu hubnutí'!C93=0),TRUE)","v":true},{"$f":"IF(A73,0,IF('Sledování průběhu hubnutí'!B94=0,'Sledování průběhu hubnutí'!B93+5,'Sledování průběhu hubnutí'!B94))","v":"00:00:00"},{"$f":"'Sledování průběhu hubnutí'!C94","v":0}]
[{"$f":"IF(('Sledování průběhu hubnutí'!C95=0)*('Sledování průběhu hubnutí'!C94=0),TRUE)","v":true},{"$f":"IF(A74,0,IF('Sledování průběhu hubnutí'!B95=0,'Sledování průběhu hubnutí'!B94+5,'Sledování průběhu hubnutí'!B95))","v":"00:00:00"},{"$f":"'Sledování průběhu hubnutí'!C95","v":0}]
[{"$f":"IF(('Sledování průběhu hubnutí'!C96=0)*('Sledování průběhu hubnutí'!C95=0),TRUE)","v":true},{"$f":"IF(A75,0,IF('Sledování průběhu hubnutí'!B96=0,'Sledování průběhu hubnutí'!B95+5,'Sledování průběhu hubnutí'!B96))","v":"00:00:00"},{"$f":"'Sledování průběhu hubnutí'!C96","v":0}]
[{"$f":"IF(('Sledování průběhu hubnutí'!C97=0)*('Sledování průběhu hubnutí'!C96=0),TRUE)","v":true},{"$f":"IF(A76,0,IF('Sledování průběhu hubnutí'!B97=0,'Sledování průběhu hubnutí'!B96+5,'Sledování průběhu hubnutí'!B97))","v":"00:00:00"},{"$f":"'Sledování průběhu hubnutí'!C97","v":0}]
[{"$f":"IF(('Sledování průběhu hubnutí'!C98=0)*('Sledování průběhu hubnutí'!C97=0),TRUE)","v":true},{"$f":"IF(A77,0,IF('Sledování průběhu hubnutí'!B98=0,'Sledování průběhu hubnutí'!B97+5,'Sledování průběhu hubnutí'!B98))","v":"00:00:00"},{"$f":"'Sledování průběhu hubnutí'!C98","v":0}]
[{"$f":"IF(('Sledování průběhu hubnutí'!C99=0)*('Sledování průběhu hubnutí'!C98=0),TRUE)","v":true},{"$f":"IF(A78,0,IF('Sledování průběhu hubnutí'!B99=0,'Sledování průběhu hubnutí'!B98+5,'Sledování průběhu hubnutí'!B99))","v":"00:00:00"},{"$f":"'Sledování průběhu hubnutí'!C99","v":0}]
[{"$f":"IF(('Sledování průběhu hubnutí'!C100=0)*('Sledování průběhu hubnutí'!C99=0),TRUE)","v":true},{"$f":"IF(A79,0,IF('Sledování průběhu hubnutí'!B100=0,'Sledování průběhu hubnutí'!B99+5,'Sledování průběhu hubnutí'!B100))","v":"00:00:00"},{"$f":"'Sledování průběhu hubnutí'!C100","v":0}]
[{"$f":"IF(('Sledování průběhu hubnutí'!C101=0)*('Sledování průběhu hubnutí'!C100=0),TRUE)","v":true},{"$f":"IF(A80,0,IF('Sledování průběhu hubnutí'!B101=0,'Sledování průběhu hubnutí'!B100+5,'Sledování průběhu hubnutí'!B101))","v":"00:00:00"},{"$f":"'Sledování průběhu hubnutí'!C101","v":0}]
[{"$f":"IF(('Sledování průběhu hubnutí'!C102=0)*('Sledování průběhu hubnutí'!C101=0),TRUE)","v":true},{"$f":"IF(A81,0,IF('Sledování průběhu hubnutí'!B102=0,'Sledování průběhu hubnutí'!B101+5,'Sledování průběhu hubnutí'!B102))","v":"00:00:00"},{"$f":"'Sledování průběhu hubnutí'!C102","v":0}]
[{"$f":"IF(('Sledování průběhu hubnutí'!C103=0)*('Sledování průběhu hubnutí'!C102=0),TRUE)","v":true},{"$f":"IF(A82,0,IF('Sledování průběhu hubnutí'!B103=0,'Sledování průběhu hubnutí'!B102+5,'Sledování průběhu hubnutí'!B103))","v":"00:00:00"},{"$f":"'Sledování průběhu hubnutí'!C103","v":0}]
[{"$f":"IF(('Sledování průběhu hubnutí'!C104=0)*('Sledování průběhu hubnutí'!C103=0),TRUE)","v":true},{"$f":"IF(A83,0,IF('Sledování průběhu hubnutí'!B104=0,'Sledování průběhu hubnutí'!B103+5,'Sledování průběhu hubnutí'!B104))","v":"00:00:00"},{"$f":"'Sledování průběhu hubnutí'!C104","v":0}]
[{"$f":"IF(('Sledování průběhu hubnutí'!C105=0)*('Sledování průběhu hubnutí'!C104=0),TRUE)","v":true},{"$f":"IF(A84,0,IF('Sledování průběhu hubnutí'!B105=0,'Sledování průběhu hubnutí'!B104+5,'Sledování průběhu hubnutí'!B105))","v":"00:00:00"},{"$f":"'Sledování průběhu hubnutí'!C105","v":0}]
[{"$f":"IF(('Sledování průběhu hubnutí'!C106=0)*('Sledování průběhu hubnutí'!C105=0),TRUE)","v":true},{"$f":"IF(A85,0,IF('Sledování průběhu hubnutí'!B106=0,'Sledování průběhu hubnutí'!B105+5,'Sledování průběhu hubnutí'!B106))","v":"00:00:00"},{"$f":"'Sledování průběhu hubnutí'!C106","v":0}]
[{"$f":"IF(('Sledování průběhu hubnutí'!C107=0)*('Sledování průběhu hubnutí'!C106=0),TRUE)","v":true},{"$f":"IF(A86,0,IF('Sledování průběhu hubnutí'!B107=0,'Sledování průběhu hubnutí'!B106+5,'Sledování průběhu hubnutí'!B107))","v":"00:00:00"},{"$f":"'Sledování průběhu hubnutí'!C107","v":0}]
[{"$f":"IF(('Sledování průběhu hubnutí'!C108=0)*('Sledování průběhu hubnutí'!C107=0),TRUE)","v":true},{"$f":"IF(A87,0,IF('Sledování průběhu hubnutí'!B108=0,'Sledování průběhu hubnutí'!B107+5,'Sledování průběhu hubnutí'!B108))","v":"00:00:00"},{"$f":"'Sledování průběhu hubnutí'!C108","v":0}]
[{"$f":"IF(('Sledování průběhu hubnutí'!C109=0)*('Sledování průběhu hubnutí'!C108=0),TRUE)","v":true},{"$f":"IF(A88,0,IF('Sledování průběhu hubnutí'!B109=0,'Sledování průběhu hubnutí'!B108+5,'Sledování průběhu hubnutí'!B109))","v":"00:00:00"},{"$f":"'Sledování průběhu hubnutí'!C109","v":0}]
[{"$f":"IF(('Sledování průběhu hubnutí'!C110=0)*('Sledování průběhu hubnutí'!C109=0),TRUE)","v":true},{"$f":"IF(A89,0,IF('Sledování průběhu hubnutí'!B110=0,'Sledování průběhu hubnutí'!B109+5,'Sledování průběhu hubnutí'!B110))","v":"00:00:00"},{"$f":"'Sledování průběhu hubnutí'!C110","v":0}]
[{"$f":"IF(('Sledování průběhu hubnutí'!C111=0)*('Sledování průběhu hubnutí'!C110=0),TRUE)","v":true},{"$f":"IF(A90,0,IF('Sledování průběhu hubnutí'!B111=0,'Sledování průběhu hubnutí'!B110+5,'Sledování průběhu hubnutí'!B111))","v":"00:00:00"},{"$f":"'Sledování průběhu hubnutí'!C111","v":0}]
[{"$f":"IF(('Sledování průběhu hubnutí'!C112=0)*('Sledování průběhu hubnutí'!C111=0),TRUE)","v":true},{"$f":"IF(A91,0,IF('Sledování průběhu hubnutí'!B112=0,'Sledování průběhu hubnutí'!B111+5,'Sledování průběhu hubnutí'!B112))","v":"00:00:00"},{"$f":"'Sledování průběhu hubnutí'!C112","v":0}]
[{"$f":"IF(('Sledování průběhu hubnutí'!C113=0)*('Sledování průběhu hubnutí'!C112=0),TRUE)","v":true},{"$f":"IF(A92,0,IF('Sledování průběhu hubnutí'!B113=0,'Sledování průběhu hubnutí'!B112+5,'Sledování průběhu hubnutí'!B113))","v":"00:00:00"},{"$f":"'Sledování průběhu hubnutí'!C113","v":0}]
[{"$f":"IF(('Sledování průběhu hubnutí'!C114=0)*('Sledování průběhu hubnutí'!C113=0),TRUE)","v":true},{"$f":"IF(A93,0,IF('Sledování průběhu hubnutí'!B114=0,'Sledování průběhu hubnutí'!B113+5,'Sledování průběhu hubnutí'!B114))","v":"00:00:00"},{"$f":"'Sledování průběhu hubnutí'!C114","v":0}]
[{"$f":"IF(('Sledování průběhu hubnutí'!C115=0)*('Sledování průběhu hubnutí'!C114=0),TRUE)","v":true},{"$f":"IF(A94,0,IF('Sledování průběhu hubnutí'!B115=0,'Sledování průběhu hubnutí'!B114+5,'Sledování průběhu hubnutí'!B115))","v":"00:00:00"},{"$f":"'Sledování průběhu hubnutí'!C115","v":0}]
[{"$f":"IF(('Sledování průběhu hubnutí'!C116=0)*('Sledování průběhu hubnutí'!C115=0),TRUE)","v":true},{"$f":"IF(A95,0,IF('Sledování průběhu hubnutí'!B116=0,'Sledování průběhu hubnutí'!B115+5,'Sledování průběhu hubnutí'!B116))","v":"00:00:00"},{"$f":"'Sledování průběhu hubnutí'!C116","v":0}]
[{"$f":"IF(('Sledování průběhu hubnutí'!C117=0)*('Sledování průběhu hubnutí'!C116=0),TRUE)","v":true},{"$f":"IF(A96,0,IF('Sledování průběhu hubnutí'!B117=0,'Sledování průběhu hubnutí'!B116+5,'Sledování průběhu hubnutí'!B117))","v":"00:00:00"},{"$f":"'Sledování průběhu hubnutí'!C117","v":0}]
[{"$f":"IF(('Sledování průběhu hubnutí'!C118=0)*('Sledování průběhu hubnutí'!C117=0),TRUE)","v":true},{"$f":"IF(A97,0,IF('Sledování průběhu hubnutí'!B118=0,'Sledování průběhu hubnutí'!B117+5,'Sledování průběhu hubnutí'!B118))","v":"00:00:00"},{"$f":"'Sledování průběhu hubnutí'!C118","v":0}]
[{"$f":"IF(('Sledování průběhu hubnutí'!C119=0)*('Sledování průběhu hubnutí'!C118=0),TRUE)","v":true},{"$f":"IF(A98,0,IF('Sledování průběhu hubnutí'!B119=0,'Sledování průběhu hubnutí'!B118+5,'Sledování průběhu hubnutí'!B119))","v":"00:00:00"},{"$f":"'Sledování průběhu hubnutí'!C119","v":0}]
[{"$f":"IF(('Sledování průběhu hubnutí'!C120=0)*('Sledování průběhu hubnutí'!C119=0),TRUE)","v":true},{"$f":"IF(A99,0,IF('Sledování průběhu hubnutí'!B120=0,'Sledování průběhu hubnutí'!B119+5,'Sledování průběhu hubnutí'!B120))","v":"00:00:00"},{"$f":"'Sledování průběhu hubnutí'!C120","v":0}]
[{"$f":"IF(('Sledování průběhu hubnutí'!C121=0)*('Sledování průběhu hubnutí'!C120=0),TRUE)","v":true},{"$f":"IF(A100,0,IF('Sledování průběhu hubnutí'!B121=0,'Sledování průběhu hubnutí'!B120+5,'Sledování průběhu hubnutí'!B121))","v":"00:00:00"},{"$f":"'Sledování průběhu hubnutí'!C121","v":0}]
[{"$f":"IF(('Sledování průběhu hubnutí'!C122=0)*('Sledování průběhu hubnutí'!C121=0),TRUE)","v":true},{"$f":"IF(A101,0,IF('Sledování průběhu hubnutí'!B122=0,'Sledování průběhu hubnutí'!B121+5,'Sledování průběhu hubnutí'!B122))","v":"00:00:00"},{"$f":"'Sledování průběhu hubnutí'!C122","v":0}]
[{"$f":"IF(('Sledování průběhu hubnutí'!C123=0)*('Sledování průběhu hubnutí'!C122=0),TRUE)","v":true},{"$f":"IF(A102,0,IF('Sledování průběhu hubnutí'!B123=0,'Sledování průběhu hubnutí'!B122+5,'Sledování průběhu hubnutí'!B123))","v":"00:00:00"},{"$f":"'Sledování průběhu hubnutí'!C123","v":0}]
[{"$f":"IF(('Sledování průběhu hubnutí'!C124=0)*('Sledování průběhu hubnutí'!C123=0),TRUE)","v":true},{"$f":"IF(A103,0,IF('Sledování průběhu hubnutí'!B124=0,'Sledování průběhu hubnutí'!B123+5,'Sledování průběhu hubnutí'!B124))","v":"00:00:00"},{"$f":"'Sledování průběhu hubnutí'!C124","v":0}]
[{"$f":"IF(('Sledování průběhu hubnutí'!C125=0)*('Sledování průběhu hubnutí'!C124=0),TRUE)","v":true},{"$f":"IF(A104,0,IF('Sledování průběhu hubnutí'!B125=0,'Sledování průběhu hubnutí'!B124+5,'Sledování průběhu hubnutí'!B125))","v":"00:00:00"},{"$f":"'Sledování průběhu hubnutí'!C125","v":0}]
[{"$f":"IF(('Sledování průběhu hubnutí'!C126=0)*('Sledování průběhu hubnutí'!C125=0),TRUE)","v":true},{"$f":"IF(A105,0,IF('Sledování průběhu hubnutí'!B126=0,'Sledování průběhu hubnutí'!B125+5,'Sledování průběhu hubnutí'!B126))","v":"00:00:00"},{"$f":"'Sledování průběhu hubnutí'!C126","v":0}]
[{"$f":"IF(('Sledování průběhu hubnutí'!C127=0)*('Sledování průběhu hubnutí'!C126=0),TRUE)","v":true},{"$f":"IF(A106,0,IF('Sledování průběhu hubnutí'!B127=0,'Sledování průběhu hubnutí'!B126+5,'Sledování průběhu hubnutí'!B127))","v":"00:00:00"},{"$f":"'Sledování průběhu hubnutí'!C127","v":0}]
[{"$f":"IF(('Sledování průběhu hubnutí'!C128=0)*('Sledování průběhu hubnutí'!C127=0),TRUE)","v":true},{"$f":"IF(A107,0,IF('Sledování průběhu hubnutí'!B128=0,'Sledování průběhu hubnutí'!B127+5,'Sledování průběhu hubnutí'!B128))","v":"00:00:00"},{"$f":"'Sledování průběhu hubnutí'!C128","v":0}]
[{"$f":"IF(('Sledování průběhu hubnutí'!C129=0)*('Sledování průběhu hubnutí'!C128=0),TRUE)","v":true},{"$f":"IF(A108,0,IF('Sledování průběhu hubnutí'!B129=0,'Sledování průběhu hubnutí'!B128+5,'Sledování průběhu hubnutí'!B129))","v":"00:00:00"},{"$f":"'Sledování průběhu hubnutí'!C129","v":0}]